fUST/lending_fUST_20250518
["ID","MTS","AMOUNT","RATE_DAILY","PERIOD"]
[361385432,1747537857518,-450.0,0.00015342,2]
[361385433,1747537857529,-450.0,0.00015342,2]
[361385434,1747537857538,-151.0,0.00015479,2]
[361385435,1747537857547,-151.0,0.00015479,2]
[361385436,1747537857558,-151.0,0.00015479,2]
[361385437,1747537857568,-553.04,0.00015479,2]
[361385438,1747537857578,-450.0,0.00015479,2]
[361385439,1747537857589,-450.0,0.00015479,2]
[361385440,1747537857599,-1284.52,0.00015479,2]
[361385441,1747537857608,-450.0,0.00015479,2]
[361385442,1747537857622,-590.63,0.00015479,2]
[361385443,1747537857632,-450.0,0.00015479,2]
[361385444,1747537857642,-507.16,0.00015479,2]
[361385445,1747537857652,-450.0,0.00015479,2]
[361385446,1747537857666,-1304.9,0.00015479,2]
[361385447,1747537857676,-450.0,0.00015479,2]
[361385448,1747537857690,-450.0,0.00015479,2]
[361385449,1747537857700,-495.28,0.00015479,2]
[361385450,1747537857711,-261.44,0.00015479,2]
[361385451,1747537857723,-1284.13,0.00015479,2]
[361385452,1747537857733,-887.12,0.00015479,2]
[361385453,1747537857744,-450.0,0.00015479,2]
[361385454,1747537857753,-450.0,0.00015479,2]
[361385455,1747537857763,-450.0,0.00015479,2]
[361385456,1747537857773,-966.72,0.00015479,2]
[361385457,1747537857783,-481.81,0.00015479,2]
[361385458,1747537857794,-450.0,0.00015479,2]
[361385459,1747537857804,-450.0,0.00015479,2]
[361385460,1747537857813,-553.04,0.00015616,2]
[361385461,1747537857824,-450.0,0.00015616,2]
[361385462,1747537857834,-450.0,0.00015616,2]
[361385463,1747537857844,-1284.52,0.00015616,2]
[361385464,1747537857855,-450.0,0.00015616,2]
[361385465,1747537857863,-590.63,0.00015616,2]
[361385466,1747537857873,-154.96,0.00015616,2]
[361385467,1747537857885,-182.6,0.00015616,2]
[361385468,1747537857895,-1304.9,0.00015616,2]
[361385469,1747537857905,-170.53,0.00015616,2]
[361385470,1747537857915,-450.0,0.00015616,2]
[361385471,1747537857926,-495.28,0.00015616,2]
[361385472,1747537857935,-1284.13,0.00015616,2]
[361385473,1747537857945,-887.12,0.00015616,2]
[361385474,1747537857955,-450.0,0.00015616,2]
[361385475,1747537857964,-325.16,0.00015616,2]
[361385476,1747537857973,-450.0,0.00015616,2]
[361385477,1747537857982,-966.72,0.00015616,2]
[361385478,1747537857991,-481.81,0.00015616,2]
[361385479,1747537858000,-450.0,0.00015616,2]
[361385480,1747537858011,-450.0,0.00015616,2]
[361385481,1747537858020,-2352.65590338,0.00015659,2]
[361385482,1747537858030,-151.0,0.00015753,2]
[361385483,1747537858040,-151.0,0.00015753,2]
[361385484,1747537858049,-553.04,0.00015753,2]
[361385485,1747537858060,-450.0,0.00015753,2]
[361385486,1747537858069,-450.0,0.00015753,2]
[361385487,1747537858079,-1284.52,0.00015753,2]
[361385488,1747537858087,-450.0,0.00015753,2]
[361385489,1747537858097,-590.63,0.00015753,2]
[361385490,1747537858108,-1304.9,0.00015753,2]
[361385491,1747537858119,-342.28,0.00015753,2]
[361385492,1747537858130,-495.28,0.00015753,2]
[361385493,1747537858140,-1284.13,0.00015753,2]
[361385494,1747537858149,-887.12,0.00015753,2]
[361385495,1747537858159,-450.0,0.00015753,2]
[361385496,1747537858169,-450.0,0.00015753,2]
[361385497,1747537858178,-966.72,0.00015753,2]
[361385498,1747537858187,-481.81,0.00015753,2]
[361385499,1747537858195,-450.0,0.00015753,2]
[361385500,1747537858205,-450.0,0.00015753,2]
[361385501,1747537858214,-553.04,0.0001589,2]
[361385502,1747537858224,-450.0,0.0001589,2]
[361385503,1747537858232,-554.88,0.0001589,2]
[361385504,1747537858241,-1284.52,0.0001589,2]
[361385505,1747537858252,-334.68,0.0001589,2]
[361385506,1747537858264,-590.63,0.0001589,2]
[361385507,1747537858273,-1304.9,0.0001589,2]
[361385508,1747537858283,-495.28,0.0001589,2]
[361385509,1747537858292,-1284.13,0.0001589,2]
[361385510,1747537858301,-887.12,0.0001589,2]
[361385511,1747537858310,-450.0,0.0001589,2]
[361385512,1747537858319,-172.24,0.0001589,2]
[361385513,1747537858328,-966.72,0.0001589,2]
[361385514,1747537858338,-481.81,0.0001589,2]
[361385515,1747537858348,-450.0,0.0001589,2]
[361385516,1747537858358,-450.0,0.0001589,2]
[361385517,1747537858368,-553.04,0.00016027,2]
[361385518,1747537858377,-420.72,0.00016027,2]
[361385519,1747537858386,-1284.52,0.00016027,2]
[361385520,1747537858396,-590.63,0.00016027,2]
[361385521,1747537858407,-1304.9,0.00016027,2]
[361385522,1747537858422,-495.28,0.00016027,2]
[361385523,1747537858431,-1284.13,0.00016027,2]
[361385524,1747537858442,-887.12,0.00016027,2]
[361385525,1747537858451,-450.0,0.00016027,2]
[361385526,1747537858461,-966.72,0.00016027,2]
[361385527,1747537858470,-481.81,0.00016027,2]
[361385528,1747537858479,-450.0,0.00016027,2]
[361385529,1747537858489,-422.28,0.00016027,2]
[361385530,1747537858498,-2352.65590338,0.00016038,2]
[361385531,1747537858509,-151.0,0.00016038,2]
[361385532,1747537858518,-152.460535,0.0001611,3]
[361385533,1747537858527,-155.171107,0.0001611,3]
[361385534,1747537858537,-553.04,0.00016164,2]
[361385535,1747537858546,-1284.52,0.00016164,2]
[361385536,1747537858556,-590.63,0.00016164,2]
[361385537,1747537858566,-1304.9,0.00016164,2]
[361385538,1747537858576,-495.28,0.00016164,2]
[361385539,1747537858586,-1284.13,0.00016164,2]
[361385540,1747537858596,-887.12,0.00016164,2]
[361385541,1747537858606,-450.0,0.00016164,2]
[361385542,1747537858617,-966.72,0.00016164,2]
[361385543,1747537858626,-481.81,0.00016164,2]
[361385544,1747537858636,-450.0,0.00016164,2]
[361385545,1747537858647,-151.0,0.00016301,2]
[361385546,1747537858657,-553.04,0.00016301,2]
[361385547,1747537858667,-1284.52,0.00016301,2]
[361385548,1747537858678,-590.63,0.00016301,2]
[361385549,1747537858688,-1304.9,0.00016301,2]
[361385550,1747537858697,-495.28,0.00016301,2]
[361385551,1747537858707,-1284.13,0.00016301,2]
[361385552,1747537858716,-887.12,0.00016301,2]
[361385553,1747537858725,-274.32,0.00016301,2]
[361385554,1747537858734,-481.81,0.00016301,2]
[361385555,1747537858744,-966.72,0.00016301,2]
[361385556,1747537858753,-450.0,0.00016301,2]
[361385557,1747537858763,-2352.65590338,0.00016417,2]
[361385558,1747537858772,-500.0,0.00016438,2]
[361385559,1747537858781,-500.0,0.00016438,2]
[361385560,1747537858791,-500.0,0.00016438,2]
[361385561,1747537858800,-500.0,0.00016438,2]
[361385562,1747537858809,-500.0,0.00016438,2]
[361385563,1747537858818,-500.0,0.00016438,2]
[361385564,1747537858827,-500.0,0.00016438,2]
[361385565,1747537858836,-500.0,0.00016438,2]
[361385566,1747537858845,-500.0,0.00016438,2]
[361385567,1747537858854,-615.37269197,0.00016438,2]
[361385568,1747537858863,-500.0,0.00016438,2]
[361385569,1747537858873,-500.0,0.00016438,2]
[361385570,1747537858882,-500.0,0.00016438,2]
[361385571,1747537858891,-500.0,0.00016438,2]
[361385572,1747537858900,-500.0,0.00016438,2]
[361385573,1747537858909,-500.0,0.00016438,2]
[361385574,1747537858919,-500.0,0.00016438,2]
[361385575,1747537858928,-500.0,0.00016438,2]
[361385576,1747537858937,-200.0,0.00016438,2]
[361385577,1747537858946,-500.0,0.00016438,2]
[361385578,1747537858954,-500.0,0.00016438,2]
[361385579,1747537858963,-500.0,0.00016438,2]
[361385580,1747537858972,-500.0,0.00016438,2]
[361385581,1747537858981,-500.0,0.00016438,2]
[361385582,1747537858990,-151.0,0.00016438,2]
[361385583,1747537858999,-151.0,0.00016438,2]
[361385584,1747537859008,-553.04,0.00016438,2]
[361385585,1747537859017,-1284.52,0.00016438,2]
[361385586,1747537859026,-590.63,0.00016438,2]
[361385587,1747537859036,-1304.9,0.00016438,2]
[361385588,1747537859045,-495.28,0.00016438,2]
[361385589,1747537859054,-1284.13,0.00016438,2]
[361385590,1747537859065,-887.12,0.00016438,2]
[361385591,1747537859074,-481.81,0.00016438,2]
[361385592,1747537859084,-966.72,0.00016438,2]
[361385593,1747537859093,-587.0,0.00016449,2]
[361385594,1747537859102,-553.04,0.00016575,2]
[361385595,1747537859111,-1284.52,0.00016575,2]
[361385596,1747537859121,-590.63,0.00016575,2]
[361385597,1747537859130,-1304.9,0.00016575,2]
[361385598,1747537859139,-495.28,0.00016575,2]
[361385599,1747537859148,-1284.13,0.00016575,2]
[361385600,1747537859158,-887.12,0.00016575,2]
[361385601,1747537859167,-481.81,0.00016575,2]
[361385602,1747537859177,-966.72,0.00016575,2]
[361385603,1747537859186,-553.04,0.00016712,2]
[361385604,1747537859195,-1284.52,0.00016712,2]
[361385605,1747537859204,-590.63,0.00016712,2]
[361385606,1747537859213,-1304.9,0.00016712,2]
[361385607,1747537859222,-495.28,0.00016712,2]
[361385608,1747537859231,-1284.13,0.00016712,2]
[361385609,1747537859241,-887.12,0.00016712,2]
[361385610,1747537859250,-481.81,0.00016712,2]
[361385611,1747537859260,-966.72,0.00016712,2]
[361385612,1747537859269,-2352.65590338,0.00016797,2]
[361385613,1747537859278,-553.12,0.00016849,2]
[361385614,1747537859288,-1284.6,0.00016849,2]
[361385615,1747537859297,-590.63,0.00016849,2]
[361385616,1747537859307,-1304.9,0.00016849,2]
[361385617,1747537859316,-495.32,0.00016849,2]
[361385618,1747537859325,-1284.13,0.00016849,2]
[361385619,1747537859335,-887.24,0.00016849,2]
[361385620,1747537859344,-481.93,0.00016849,2]
[361385621,1747537859353,-966.72,0.00016849,2]
[361385622,1747537859363,-470.03124046,0.00016976,2]
[361385623,1747537859372,-2352.65590338,0.00017176,2]
[361385624,1747537859382,-2352.65590338,0.00017555,2]
[361385625,1747537859391,-151.0,0.00017808,2]
[361385626,1747537859401,-151.0,0.00017808,2]
[361385627,1747537859410,-151.0,0.00017808,2]
[361385628,1747537859422,-151.0,0.00017808,2]
[361385629,1747537859431,-151.0,0.00017808,2]
[361385630,1747537859440,-151.0,0.00017808,2]
[361385631,1747537859450,-151.0,0.00017808,2]
[361385632,1747537859459,-151.0,0.00017808,2]
[361385633,1747537859470,-151.0,0.00017808,2]
[361385634,1747537859479,-151.0,0.00017808,2]
[361385635,1747537859490,-151.0,0.00017808,2]
[361385636,1747537859499,-151.0,0.00017808,2]
[361385637,1747537859510,-153.620243,0.00017808,2]
[361385638,1747537859519,-151.0,0.00017808,2]
[361385639,1747537859529,-2352.65590338,0.00017934,2]
[361385640,1747537859539,-3000.0,0.00017941,2]
[361385641,1747537859549,-823.0,0.00018026,2]
[361385642,1747537859558,-153.0,0.00018055,2]
[361385643,1747537859568,-153.0,0.00018055,2]
[361385644,1747537859577,-154.2915306,0.00018055,2]
[361385645,1747537859586,-153.0,0.00018055,2]
[361385646,1747537859595,-154.9754932,0.00018055,2]
[361385647,1747537859605,-329.5065301,0.00018055,2]
[361385648,1747537859615,-500.0,0.00018092,2]
[361385649,1747537859624,-500.0,0.00018092,2]
[361385650,1747537859633,-151.0,0.000183,2]
[361385651,1747537859643,-2352.65590338,0.00018314,2]
[361385652,1747537859652,-1000.0,0.0001864,2]
[361385653,1747537859661,-1000.0,0.0001864,2]
[361385654,1747537859671,-470.03124046,0.00018665,2]
[361385655,1747537859680,-2352.65590338,0.00018693,2]
[361385656,1747537859689,-153.0,0.00018877,2]
[361385657,1747537859698,-153.0,0.00018877,2]
[361385658,1747537859707,-153.0,0.00018877,2]
[361385659,1747537859717,-490.57127729,0.00018896,2]
[361385660,1747537859726,-151.0,0.000189,2]
[361385661,1747537859735,-151.0,0.000189,2]
[361385662,1747537859744,-11819.33816944,0.000189,2]
[361385663,1747537859754,-3000.0,0.00019037,2]
[361385664,1747537859763,-1914.9637001,0.0001904,2]
[361385665,1747537859773,-2352.65590338,0.00019072,2]
[361385666,1747537859782,-11159.58736,0.00019136,2]
[361385667,1747537859792,-151.0,0.00019136,2]
[361385668,1747537859802,-1454.43435213,0.00019136,2]
[361385669,1747537859811,-500.0,0.00019141,2]
[361385670,1747537859819,-500.0,0.00019141,2]
[361385671,1747537859828,-415.00994034,0.00019141,2]
[361385672,1747537859839,-500.0,0.00019141,2]
[361385673,1747537859850,-155.0,0.00019178,2]
[361385674,1747537859860,-1069.91387,0.00019178,2]
[361385675,1747537859871,-1500.0,0.00019188,2]
[361385676,1747537859882,-259.15712708,0.00019188,2]
[361385677,1747537859892,-151.0,0.00019188,2]
[361385678,1747537859902,-151.0,0.00019188,2]
[361385679,1747537859911,-151.0,0.00019188,2]
[361385680,1747537859921,-159.374783,0.00019188,2]
[361385681,1747537859930,-4002.0,0.000192,2]
[361385682,1747537859940,-2000.0,0.000193,2]
[361385683,1747537859950,-151.0,0.000193,2]
[361385684,1747537859961,-151.0,0.00019329,2]
[361385685,1747537859970,-152.293042,0.00019329,2]
[361385686,1747537859979,-151.0,0.00019329,2]
[361385687,1747537859989,-151.0,0.00019329,2]
[361385688,1747537859998,-151.0,0.00019329,2]
[361385689,1747537860007,-151.0,0.00019329,2]
[361385690,1747537860017,-3624.0698998,0.00019329,3]
[361385691,1747537860027,-91132.02628264,0.00019329,2]
[361385692,1747537860037,-76374.3936775,0.00019329,2]
[361385693,1747537860273,-2000.0,0.00019329,2]
[361385694,1747537964707,244.0,0.00027397,120]
[361385715,1747538891899,-167.12266569,0.00012585,2]
[361385717,1747538893276,167.19879114,0.00010618,2]
[361385748,1747538987960,-152.0,0.00012584,2]
[361385751,1747538990698,-148.0,0.00012584,2]
[361385752,1747538990721,-32.87733431,0.00012585,2]
[361385764,1747539013387,-180.03912739,0.00012458,2]
[361385766,1747539016082,-91.4943015,0.00012458,2]
[361385767,1747539016104,-66.34488289,0.00012584,2]
[361385769,1747539019369,-160.53696874,0.00012584,2]
[361385771,1747539022352,-222.73251824,0.00012458,2]
[361385772,1747539024446,-296.02312785,0.00012458,2]
[361385773,1747539024469,-73.11814837,0.00012584,2]
[361385774,1747539024492,-147.15490283,0.00012584,2]
[361385776,1747539027800,-173.94630546,0.00012584,2]
[361385778,1747539029432,-179.23776153,0.00012584,2]
[361385779,1747539031359,-323.76223847,0.00012584,2]
[361385784,1747539032189,-375.89879171,0.00012584,2]
[361385785,1747539032198,-300.0,0.00012584,2]
[361385786,1747539032207,-300.0,0.00012584,2]
[361385787,1747539032217,-300.0,0.00012584,2]
[361385788,1747539032226,-24700.0,0.00012585,2]
[361385789,1747539032236,-428.8591213,0.00012694,2]
[361385790,1747539032245,-1268.4440691,0.00012731,2]
[361385791,1747539032254,-474.5238841,0.00012937,2]
[361385792,1747539032264,-681.5058629,0.00013027,2]
[361385793,1747539032273,-3129.93215094,0.00013683,2]
[361385794,1747539032282,-500.0,0.00013697,2]
[361385795,1747539032291,-500.0,0.00013697,2]
[361385796,1747539032301,-500.0,0.00013697,2]
[361385797,1747539032310,-500.0,0.00013697,2]
[361385798,1747539032318,-500.0,0.00013697,2]
[361385799,1747539032327,-500.0,0.00013697,2]
[361385800,1747539032336,-542.55455565,0.00013697,2]
[361385801,1747539032346,-500.0,0.00013697,2]
[361385802,1747539032355,-344.97204818,0.00013697,2]
[361385803,1747539032364,-500.0,0.00013697,2]
[361385804,1747539032373,-500.0,0.00013697,2]
[361385805,1747539032382,-500.0,0.00013697,2]
[361385806,1747539032391,-500.0,0.00013697,2]
[361385808,1747539032401,-500.0,0.00013697,2]
[361385811,1747539032410,-500.0,0.00013697,2]
[361385813,1747539032419,-500.0,0.00013697,2]
[361385816,1747539032428,-360.0,0.00013697,2]
[361385819,1747539032437,-500.0,0.00013697,2]
[361385822,1747539032446,-500.0,0.00013697,2]
[361385824,1747539032456,-500.0,0.00013697,2]
[361385826,1747539032465,-500.0,0.00013697,2]
[361385828,1747539032475,-500.0,0.00013697,2]
[361385830,1747539032484,-605.58883754,0.00013697,2]
[361385832,1747539032493,-499.99999999,0.00013697,2]
[361385834,1747539032502,-400.0,0.00013698,2]
[361385836,1747539032512,-220.29532143,0.00013698,2]
[361385838,1747539032521,-450.0,0.00013698,2]
[361385840,1747539032530,-400.0,0.00013698,2]
[361385842,1747539032540,-400.0,0.00013698,2]
[361385844,1747539032549,-400.0,0.00013698,2]
[361385846,1747539032558,-334.28597022,0.00013698,2]
[361385848,1747539032567,-337.59411861,0.00013698,2]
[361385863,1747539032833,-62.40588139,0.00013698,2]
[361385864,1747539032855,-184.19049674,0.00013698,2]
[361385865,1747539035120,-217.51099939,0.00013698,2]
[361385866,1747539035143,-56.47480024,0.00013698,2]
[361385867,1747539037594,-241.59257698,0.0001356,2]
[361385901,1747539038215,-1581.51577264,0.0001356,2]
[361385903,1747539038225,-415.79519976,0.00013698,2]
[361385906,1747539038235,-450.0,0.00013698,2]
[361385908,1747539038244,-450.0,0.00013698,2]
[361385910,1747539038253,-450.0,0.00013698,2]
[361385912,1747539038263,-450.0,0.00013698,2]
[361385914,1747539038272,-450.0,0.00013698,2]
[361385916,1747539038281,-450.0,0.00013698,2]
[361385917,1747539038290,-450.0,0.00013698,2]
[361385919,1747539038299,-450.0,0.00013698,2]
[361385921,1747539038309,-450.0,0.00013698,2]
[361385923,1747539038318,-450.0,0.00013698,2]
[361385925,1747539038327,-450.0,0.00013698,2]
[361385927,1747539038337,-450.0,0.00013698,2]
[361385929,1747539038346,-450.0,0.00013698,2]
[361385931,1747539038355,-450.0,0.00013698,2]
[361385933,1747539038364,-450.0,0.00013698,2]
[361385935,1747539038374,-450.0,0.00013698,2]
[361385937,1747539038383,-450.0,0.00013698,2]
[361385939,1747539038393,-561.63,0.00013698,2]
[361385941,1747539038402,-450.0,0.00013698,2]
[361385942,1747539038411,-450.0,0.00013698,2]
[361385943,1747539038420,-450.0,0.00013698,2]
[361385944,1747539038429,-450.0,0.00013698,2]
[361385945,1747539038438,-503.18518727,0.00013698,2]
[361385946,1747539038447,-402.82635761,0.00013698,2]
[361385947,1747539038456,-508.7579224,0.00013698,2]
[361385948,1747539038465,-506.30833476,0.00013698,2]
[361385949,1747539038475,-450.0,0.00013698,2]
[361385950,1747539038483,-400.0,0.00013698,2]
[361385951,1747539038493,-518.0,0.00013698,2]
[361385952,1747539038502,-537.75212484,0.00013698,2]
[361385953,1747539038511,-541.1051514,0.00013698,2]
[361385954,1747539038520,-586.44,0.00013698,2]
[361385955,1747539038529,-400.0,0.00013698,2]
[361385956,1747539038538,-406.05132876,0.00013698,2]
[361385957,1747539038547,-506.46470336,0.00013698,2]
[361385958,1747539038556,-400.0,0.00013698,2]
[361385959,1747539038565,-403.6113498,0.00013698,2]
[361385960,1747539038575,-450.0,0.00013698,2]
[361385961,1747539038584,-405.38798845,0.00013698,2]
[361385962,1747539038593,-450.0,0.00013698,2]
[361385963,1747539038603,-450.0,0.00013698,2]
[361385964,1747539038612,-400.0,0.00013698,2]
[361385965,1747539038621,-382.86533332,0.00013698,2]
[361385966,1747539038632,-400.0,0.00013698,2]
[361385967,1747539038643,-401.13232337,0.00013698,2]
[361385968,1747539038652,-502.87520043,0.00013698,2]
[361385969,1747539038661,-408.84550279,0.00013698,2]
[361385970,1747539038670,-450.0,0.00013698,2]
[361385971,1747539038680,-450.0,0.00013698,2]
[361385972,1747539038689,-450.0,0.00013698,2]
[361385973,1747539038700,-450.0,0.00013698,2]
[361385974,1747539038710,-450.0,0.00013698,2]
[361385975,1747539038720,-450.0,0.00013698,2]
[361385976,1747539038729,-450.0,0.00013698,2]
[361385977,1747539038740,-400.0,0.00013698,2]
[361385978,1747539038749,-450.0,0.00013698,2]
[361385979,1747539038759,-1000.0,0.00013698,2]
[361385980,1747539038768,-403.78708422,0.00013698,2]
[361385981,1747539038777,-400.0,0.00013698,2]
[361385982,1747539038787,-402.40907246,0.00013698,2]
[361385983,1747539038797,-478.12815492,0.00013698,2]
[361385984,1747539038806,-410.29104555,0.00013698,2]
[361385985,1747539038815,-400.0,0.00013698,2]
[361385986,1747539038825,-450.0,0.00013698,2]
[361385987,1747539038835,-450.0,0.00013698,2]
[361385988,1747539038844,-502.24718403,0.00013698,2]
[361385989,1747539038853,-402.21713076,0.00013698,2]
[361385990,1747539038863,-450.0,0.00013698,2]
[361385991,1747539038872,-511.52,0.00013698,2]
[361385992,1747539038881,-400.0,0.00013698,2]
[361385993,1747539038891,-450.0,0.00013698,2]
[361385994,1747539038900,-257.0456702,0.00013698,2]
[361385995,1747539038909,-450.0,0.00013698,2]
[361385996,1747539038919,-414.14350838,0.00013698,2]
[361385997,1747539038929,-450.0,0.00013698,2]
[361385998,1747539038938,-411.39217425,0.00013698,2]
[361385999,1747539038947,-410.27380838,0.00013698,2]
[361386000,1747539038957,-450.0,0.00013698,2]
[361386001,1747539038966,-450.0,0.00013698,2]
[361386002,1747539038976,-404.90651024,0.00013698,2]
[361386003,1747539038986,-450.0,0.00013698,2]
[361386004,1747539038995,-411.41708505,0.00013698,2]
[361386005,1747539039005,-405.81535306,0.00013698,2]
[361386006,1747539039015,-412.05858844,0.00013698,2]
[361386007,1747539039025,-450.0,0.00013698,2]
[361386008,1747539039035,-450.0,0.00013698,2]
[361386009,1747539039045,-406.74338702,0.00013698,2]
[361386010,1747539039057,-411.45713863,0.00013698,2]
[361386011,1747539039069,-450.0,0.00013698,2]
[361386012,1747539039080,-450.0,0.00013698,2]
[361386013,1747539039089,-450.0,0.00013698,2]
[361386014,1747539039099,-51.20538855,0.00013698,2]
[361386031,1747539043445,-398.79461145,0.00013698,2]
[361386032,1747539043454,-450.0,0.00013698,2]
[361386033,1747539043464,-401.52832316,0.00013698,2]
[361386034,1747539043474,-400.0,0.00013698,2]
[361386036,1747539043483,-450.0,0.00013698,2]
[361386038,1747539043493,-400.0,0.00013698,2]
[361386040,1747539043504,-450.0,0.00013698,2]
[361386041,1747539043513,-450.0,0.00013698,2]
[361386042,1747539043523,-400.0,0.00013698,2]
[361386043,1747539043532,-412.04253237,0.00013698,2]
[361386044,1747539043542,-450.0,0.00013698,2]
[361386045,1747539043551,-400.0,0.00013698,2]
[361386046,1747539043561,-426.80223193,0.00013698,2]
[361386048,1747539043571,-234.00821005,0.00013698,2]
[361386050,1747539043580,-450.0,0.00013698,2]
[361386051,1747539043590,-402.01790694,0.00013698,2]
[361386052,1747539043600,-450.0,0.00013698,2]
[361386053,1747539043609,-358.45962418,0.00013698,2]
[361386054,1747539044322,-128.80037582,0.00013698,2]
[361386055,1747539044345,-226.02228794,0.00013698,2]
[361386072,1747539613098,-215.23596201,0.00012524,2]
[361386079,1747539730119,-318.16803371,0.00012101,2]
[361386080,1747539801110,-186.44091713,0.00011381,2]
[361386081,1747539803875,-335.04014938,0.00011381,2]
[361386082,1747539807673,-303.57850342,0.00011381,2]
[361386083,1747539809142,-148.27354214,0.00011381,2]
[361386084,1747539809163,-279.36981359,0.00011496,2]
[361386086,1747539815653,-183.48956111,0.00011496,2]
[361386087,1747539817751,-37.1406253,0.00011496,2]
[361386088,1747539954333,194.0,0.000273,120]
[361386089,1747539958311,194.0,0.000273,120]
[361386108,1747540174108,-156.8,0.00012101,2]
[361386117,1747540232452,-25.03196629,0.00012101,2]
[361386118,1747540232464,-846.85,0.00012329,2]
[361386119,1747540232473,-180.3557677,0.00012482,2]
[361386120,1747540232483,-1859.8166108,0.00012482,2]
[361386121,1747540232492,-500.0,0.00012738,2]
[361386122,1747540232501,-215.235962,0.0001278,2]
[361386136,1747540232694,-43.45486201,0.00013408,2]
[361386137,1747540232706,-456.54513799,0.00013408,2]
[361386138,1747540232715,-190.33978076,0.00013598,2]
[361386139,1747540232724,-194.0,0.000136,2]
[361386140,1747540232734,-194.0,0.000136,2]
[361386141,1747540232743,-194.0,0.000136,3]
[361386142,1747540232752,-300.83272587,0.00013623,2]
[361386143,1747540232761,-300.0,0.00013696,2]
[361386144,1747540232770,-300.0,0.00013696,2]
[361386145,1747540232779,-697.7677195,0.00013697,2]
[361386146,1747540232791,-274.75261914,0.00013697,2]
[361386147,1747540232800,-200.70924316,0.00013697,2]
[361386148,1747540232812,-299.29075684,0.00013697,2]
[361386149,1747540232821,-191.67145433,0.00013697,2]
[361386150,1747540232830,-500.0,0.00013697,2]
[361386151,1747540232840,-500.0,0.00013697,2]
[361386152,1747540232849,-500.0,0.00013697,2]
[361386153,1747540232858,-500.0,0.00013697,2]
[361386154,1747540232867,-500.0,0.00013697,2]
[361386155,1747540232878,-500.0,0.00013697,2]
[361386156,1747540232889,-500.0,0.00013697,2]
[361386157,1747540232898,-500.0,0.00013697,2]
[361386158,1747540232908,-243.99172133,0.00013697,2]
[361386181,1747540238338,-256.00827867,0.00013697,2]
[361386183,1747540238348,-500.0,0.00013697,2]
[361386185,1747540238357,-500.0,0.00013697,2]
[361386187,1747540238366,-50.74438911,0.00013697,2]
[361386190,1747540238390,-449.25561089,0.00013697,2]
[361386192,1747540238402,-500.0,0.00013697,2]
[361386194,1747540238411,-595.83637925,0.00013697,2]
[361386196,1747540238421,-500.0,0.00013697,2]
[361386198,1747540238430,-500.0,0.00013697,2]
[361386200,1747540238440,-500.0,0.00013697,2]
[361386202,1747540238449,-500.0,0.00013697,2]
[361386204,1747540238459,-500.0,0.00013697,2]
[361386206,1747540238469,-500.0,0.00013697,2]
[361386208,1747540238478,-500.0,0.00013697,2]
[361386210,1747540238487,-500.0,0.00013697,2]
[361386212,1747540238497,-500.0,0.00013697,2]
[361386214,1747540238506,-500.0,0.00013697,2]
[361386216,1747540238516,-500.0,0.00013697,2]
[361386218,1747540238525,-500.0,0.00013697,2]